fUST/lending_fUST_20240819
["ID","MTS","AMOUNT","RATE_DAILY","PERIOD"]
[335277138,1724064659847,-500.0,0.00016986,2]
[335277139,1724064659856,-594.695822,0.00016986,2]
[335277140,1724064659866,-649.79017461,0.00016986,2]
[335277141,1724064659876,-594.695822,0.00016986,2]
[335277142,1724064659886,-500.0,0.00016986,2]
[335277143,1724064659895,-500.0,0.00016986,2]
[335277144,1724064659905,-3020.65,0.00016986,2]
[335277145,1724064659916,-2059.25,0.00016986,2]
[335277146,1724064659926,-6249.43,0.00016986,2]
[335277147,1724064659936,-1358.47,0.00016986,2]
[335277148,1724064659950,-1833.6,0.00016986,2]
[335277149,1724064659960,-500.0,0.00016986,2]
[335277150,1724064659972,-500.0,0.00016986,2]
[335277151,1724064659982,-695.24,0.00016986,2]
[335277152,1724064659992,-501.26279243,0.00016986,2]
[335277153,1724064660001,-1406.0,0.00016986,2]
[335277154,1724064660011,-500.0,0.00016986,2]
[335277155,1724064660021,-1523.28,0.00016986,2]
[335277156,1724064660032,-521.48,0.00016986,2]
[335277157,1724064660043,-1476.87,0.00016986,2]
[335277158,1724064660053,-500.0,0.00016986,2]
[335277159,1724064660062,-500.0,0.00016986,2]
[335277160,1724064660072,-500.0,0.00016986,2]
[335277161,1724064660082,-2266.85,0.00016986,2]
[335277162,1724064660092,-1022.040147,0.00016986,2]
[335277163,1724064660101,-1022.040147,0.00016986,2]
[335277164,1724064660111,-500.0,0.00016986,2]
[335277165,1724064660124,-1022.040147,0.00016986,2]
[335277166,1724064660134,-1022.040147,0.00016986,2]
[335277167,1724064660144,-500.0,0.00016986,2]
[335277168,1724064660154,-500.0,0.00016986,2]
[335277169,1724064660165,-1215.95,0.00016986,2]
[335277170,1724064660176,-734.72,0.00016986,2]
[335277171,1724064660185,-500.0,0.00016986,2]
[335277172,1724064660195,-729.24,0.00016986,2]
[335277173,1724064660205,-2145.28,0.00016986,2]
[335277174,1724064660215,-504.4897368,0.00016986,2]
[335277175,1724064660224,-500.0,0.00016986,2]
[335277176,1724064660334,-1474.66,0.00016986,2]
[335277177,1724064660350,-500.0,0.00016986,2]
[335277178,1724064660360,-612.11,0.00016986,2]
[335277179,1724064660370,-2313.4,0.00016986,2]
[335277180,1724064660379,-1177.26,0.00016986,2]
[335277181,1724064660390,-500.0,0.00016986,2]
[335277182,1724064660400,-573.54,0.00016986,2]
[335277183,1724064660409,-1601.505462,0.00016986,2]
[335277184,1724064660419,-1601.505462,0.00016986,2]
[335277185,1724064660429,-500.0,0.00016986,2]
[335277186,1724064660439,-500.0,0.00016986,2]
[335277187,1724064660448,-500.0,0.00016986,2]
[335277188,1724064660458,-560.41,0.00016986,2]
[335277189,1724064660468,-1601.505462,0.00016986,2]
[335277190,1724064660477,-1601.505462,0.00016986,2]
[335277191,1724064660487,-2216.78,0.00016986,2]
[335277192,1724064660497,-500.0,0.00016986,2]
[335277193,1724064660508,-1514.7,0.00016986,2]
[335277194,1724064660519,-835.68,0.00016986,2]
[335277195,1724064660529,-500.0,0.00016986,2]
[335277196,1724064660538,-623.87331554,0.00016986,2]
[335277197,1724064660548,-3105.81,0.00016986,2]
[335277198,1724064660557,-500.0,0.00016986,2]
[335277199,1724064660566,-345.63282848,0.00016986,2]
[335277200,1724064660575,-595.88,0.00016986,2]
[335277201,1724064660586,-500.0,0.00016986,2]
[335277202,1724064660596,-1084.05,0.00016986,2]
[335277203,1724064660606,-500.0,0.00016986,2]
[335277204,1724064660618,-317.402066,0.00016986,2]
[335277205,1724064660628,-317.402066,0.00016986,2]
[335277206,1724064660639,-500.0,0.00016986,2]
[335277207,1724064660649,-3685.64,0.00016986,2]
[335277208,1724064660658,-317.402066,0.00016986,2]
[335277209,1724064660670,-2913.53,0.00016986,2]
[335277210,1724064660682,-597.54,0.00016986,2]
[335277211,1724064660693,-500.0,0.00016986,2]
[335277212,1724064660704,-1064.67,0.00016986,2]
[335277213,1724064660716,-579.64740106,0.00016986,2]
[335277214,1724064660727,-1144.09,0.00016986,2]
[335277215,1724064660738,-500.0,0.00016986,2]
[335277216,1724064660753,-500.0,0.00016986,2]
[335277217,1724064660763,-1364.06,0.00016986,2]
[335277218,1724064660773,-500.0,0.00016986,2]
[335277219,1724064660783,-500.0,0.00016986,2]
[335277220,1724064660794,-668.34,0.00016986,2]
[335277221,1724064660804,-346.77800771,0.00016986,2]
[335277222,1724064660815,-154.69833824,0.00017,2]
[335277223,1724064660826,-500.0,0.0001726,2]
[335277224,1724064660837,-999.1,0.0001726,2]
[335277225,1724064660846,-500.0,0.0001726,2]
[335277226,1724064660856,-500.0,0.0001726,2]
[335277227,1724064660866,-635.16,0.0001726,2]
[335277228,1724064660876,-500.0,0.0001726,2]
[335277229,1724064660885,-500.0,0.0001726,2]
[335277230,1724064660895,-591.86,0.0001726,2]
[335277231,1724064660904,-500.0,0.0001726,2]
[335277232,1724064660914,-629.61172879,0.0001726,2]
[335277233,1724064660923,-500.0,0.0001726,2]
[335277234,1724064660933,-500.0,0.0001726,2]
[335277235,1724064660943,-500.0,0.0001726,2]
[335277236,1724064660953,-566.51,0.0001726,2]
[335277237,1724064660962,-500.0,0.0001726,2]
[335277238,1724064660972,-506.48474823,0.0001726,2]
[335277239,1724064660983,-500.0,0.0001726,2]
[335277240,1724064660992,-500.0,0.0001726,2]
[335277241,1724064661002,-500.0,0.0001726,2]
[335277242,1724064661013,-500.0,0.0001726,2]
[335277243,1724064661023,-500.0,0.0001726,2]
[335277244,1724064661032,-500.0,0.0001726,2]
[335277245,1724064661042,-500.0,0.0001726,2]
[335277246,1724064661051,-500.0,0.0001726,2]
[335277247,1724064661061,-500.0,0.0001726,2]
[335277248,1724064661071,-500.0,0.0001726,2]
[335277249,1724064661082,-500.0,0.0001726,2]
[335277250,1724064661091,-604.56,0.0001726,2]
[335277251,1724064661101,-500.0,0.0001726,2]
[335277252,1724064661110,-502.71337458,0.0001726,2]
[335277253,1724064661119,-505.12865058,0.0001726,2]
[335277254,1724064661129,-1036.27,0.0001726,2]
[335277255,1724064661139,-500.0,0.0001726,2]
[335277256,1724064661149,-876.01,0.0001726,2]
[335277257,1724064661158,-500.0,0.0001726,2]
[335277258,1724064661168,-920.14,0.0001726,2]
[335277259,1724064661178,-500.0,0.0001726,2]
[335277260,1724064661187,-924.92,0.0001726,2]
[335277261,1724064661197,-500.0,0.0001726,2]
[335277262,1724064661206,-500.0,0.0001726,2]
[335277263,1724064661215,-500.0,0.0001726,2]
[335277264,1724064661225,-500.0,0.0001726,2]
[335277265,1724064661234,-500.0,0.0001726,2]
[335277266,1724064661243,-884.77,0.0001726,2]
[335277267,1724064661253,-432.52114178,0.0001726,2]
[335277268,1724064661262,-1525.26,0.0001726,2]
[335277269,1724064661271,-500.0,0.0001726,2]
[335277270,1724064661282,-1240.07,0.0001726,2]
[335277271,1724064661290,-500.0,0.0001726,2]
[335277272,1724064661300,-500.0,0.0001726,2]
[335277273,1724064661310,-500.0,0.0001726,2]
[335277274,1724064661319,-531.9,0.0001726,2]
[335277275,1724064661328,-500.0,0.0001726,2]
[335277276,1724064661339,-500.0,0.0001726,2]
[335277277,1724064661348,-500.0,0.0001726,2]
[335277278,1724064661359,-670.44,0.0001726,2]
[335277279,1724064661371,-2085.01,0.0001726,2]
[335277280,1724064661381,-500.0,0.0001726,2]
[335277281,1724064661390,-151.0,0.0001726,2]
[335277282,1724064661399,-223.088106,0.0001726,2]
[335277283,1724064661408,-500.0,0.0001726,2]
[335277284,1724064661418,-500.0,0.0001726,2]
[335277285,1724064661427,-972.73,0.0001726,2]
[335277286,1724064661436,-608.01,0.0001726,2]
[335277287,1724064661445,-627.13,0.0001726,2]
[335277288,1724064661454,-549.6,0.0001726,2]
[335277289,1724064661464,-183.36,0.0001726,2]
[335277290,1724064661473,-571.47,0.0001726,2]
[335277291,1724064661482,-500.0,0.0001726,2]
[335277292,1724064661491,-500.0,0.0001726,2]
[335277293,1724064661501,-509.54,0.0001726,2]
[335277294,1724064661511,-500.0,0.0001726,2]
[335277295,1724064661520,-1192.27,0.0001726,2]
[335277296,1724064661530,-500.0,0.0001726,2]
[335277297,1724064661539,-559.08153416,0.0001726,2]
[335277298,1724064661549,-500.0,0.0001726,2]
[335277299,1724064661558,-868.49,0.0001726,2]
[335277300,1724064661568,-500.0,0.0001726,2]
[335277301,1724064661577,-833.76,0.0001726,2]
[335277302,1724064661587,-500.0,0.0001726,2]
[335277303,1724064661596,-500.0,0.0001726,2]
[335277304,1724064661605,-541.44,0.0001726,2]
[335277305,1724064661614,-680.14,0.0001726,2]
[335277306,1724064661623,-677.35,0.0001726,2]
[335277307,1724064661633,-500.0,0.0001726,2]
[335277308,1724064661642,-1037.09,0.0001726,2]
[335277309,1724064661652,-500.0,0.0001726,2]
[335277310,1724064661661,-764.95,0.0001726,2]
[335277311,1724064661669,-500.0,0.0001726,2]
[335277312,1724064661678,-3205.11,0.0001726,2]
[335277313,1724064661688,-629.33,0.0001726,2]
[335277314,1724064661697,-500.0,0.0001726,2]
[335277315,1724064661706,-500.0,0.0001726,2]
[335277316,1724064661715,-500.0,0.0001726,2]
[335277317,1724064661724,-618.15,0.0001726,2]
[335277318,1724064661733,-500.0,0.0001726,2]
[335277319,1724064661743,-788.89,0.0001726,2]
[335277320,1724064661756,-501.1,0.0001726,2]
[335277321,1724064661780,-500.0,0.0001726,2]
[335277322,1724064661791,-500.0,0.0001726,2]
[335277323,1724064661802,-868.42,0.0001726,2]
[335277324,1724064661814,-500.0,0.0001726,2]
[335277325,1724064661827,-945.19,0.0001726,2]
[335277326,1724064661838,-500.0,0.0001726,2]
[335277327,1724064661849,-924.86,0.0001726,2]
[335277328,1724064661860,-500.0,0.0001726,2]
[335277329,1724064661870,-1050.73,0.0001726,2]
[335277330,1724064661879,-571.61,0.0001726,2]
[335277331,1724064661892,-673.9,0.0001726,2]
[335277332,1724064661902,-819.39,0.0001726,2]
[335277333,1724064661912,-500.0,0.0001726,2]
[335277334,1724064661921,-513.12,0.0001726,2]
[335277335,1724064661931,-500.0,0.0001726,2]
[335277336,1724064661941,-500.0,0.0001726,2]
[335277337,1724064661951,-500.0,0.0001726,2]
[335277338,1724064661961,-1257.31,0.0001726,2]
[335277339,1724064661971,-651.1,0.0001726,2]
[335277340,1724064661983,-500.0,0.0001726,2]
[335277341,1724064661993,-800.57,0.0001726,2]
[335277342,1724064662005,-462.30650882,0.0001726,2]
[335277343,1724064662016,-420.51859826,0.0001726,2]
[335277344,1724064662026,-643.17,0.0001726,2]
[335277345,1724064662038,-500.0,0.0001726,2]
[335277346,1724064662048,-500.0,0.0001726,2]
[335277347,1724064662059,-500.0,0.0001726,2]
[335277348,1724064662069,-891.67,0.0001726,2]
[335277349,1724064662079,-500.0,0.0001726,2]
[335277350,1724064662091,-500.0,0.0001726,2]
[335277351,1724064662101,-734.44,0.0001726,2]
[335277352,1724064662113,-500.0,0.0001726,2]
[335277353,1724064662124,-500.0,0.0001726,2]
[335277354,1724064662135,-596.48,0.0001726,2]
[335277355,1724064662145,-510.04762744,0.0001726,2]
[335277356,1724064662291,-991.23,0.0001726,2]
[335277357,1724064662301,-500.0,0.0001726,2]
[335277358,1724064662311,-975.86,0.0001726,2]
[335277359,1724064662320,-500.0,0.0001726,2]
[335277360,1724064662331,-500.0,0.0001726,2]
[335277361,1724064662340,-500.0,0.0001726,2]
[335277362,1724064662350,-1381.03,0.0001726,2]
[335277363,1724064662360,-500.0,0.0001726,2]
[335277364,1724064662369,-502.85,0.0001726,2]
[335277365,1724064662379,-500.0,0.0001726,2]
[335277366,1724064662391,-500.0,0.0001726,2]
[335277367,1724064662400,-530.34,0.0001726,2]
[335277368,1724064662410,-704.69,0.0001726,2]
[335277369,1724064662419,-883.26,0.0001726,2]
[335277370,1724064662429,-652.07,0.0001726,2]
[335277371,1724064662440,-613.05,0.0001726,2]
[335277372,1724064662451,-500.0,0.0001726,2]
[335277373,1724064662461,-500.0,0.0001726,2]
[335277374,1724064662471,-500.0,0.0001726,2]
[335277375,1724064662482,-644.74,0.0001726,2]
[335277376,1724064662491,-500.0,0.0001726,2]
[335277377,1724064662501,-500.0,0.0001726,2]
[335277378,1724064662512,-500.0,0.0001726,2]
[335277379,1724064662523,-500.0,0.0001726,2]
[335277380,1724064662534,-500.0,0.0001726,2]
[335277381,1724064662544,-500.0,0.0001726,2]
[335277382,1724064662554,-500.0,0.0001726,2]
[335277383,1724064662568,-500.0,0.0001726,2]
[335277384,1724064662578,-500.0,0.0001726,2]
[335277385,1724064662588,-627.32,0.0001726,2]
[335277386,1724064662598,-768.77,0.0001726,2]
[335277387,1724064662608,-500.0,0.0001726,2]
[335277388,1724064662618,-1030.7,0.0001726,2]
[335277389,1724064662627,-751.5,0.0001726,2]
[335277390,1724064662638,-683.321162,0.0001726,2]
[335277391,1724064662647,-500.0,0.0001726,2]
[335277392,1724064662659,-669.42,0.0001726,2]
[335277393,1724064662668,-563.42,0.0001726,2]
[335277394,1724064662679,-500.0,0.0001726,2]
[335277395,1724064662690,-500.0,0.0001726,2]
[335277396,1724064662703,-563.05,0.0001726,2]
[335277397,1724064662714,-500.0,0.0001726,2]
[335277398,1724064662725,-500.0,0.0001726,2]
[335277399,1724064662735,-500.0,0.0001726,2]
[335277400,1724064662749,-500.0,0.0001726,2]
[335277401,1724064662760,-500.0,0.0001726,2]
[335277402,1724064662770,-1159.42,0.0001726,2]
[335277403,1724064662780,-1058.32,0.0001726,2]
[335277404,1724064662791,-500.0,0.0001726,2]
[335277405,1724064662801,-500.0,0.0001726,2]
[335277406,1724064662811,-263.841394,0.0001726,2]
[335277407,1724064662820,-263.841394,0.0001726,2]
[335277408,1724064662833,-263.841394,0.0001726,2]
[335277409,1724064662844,-263.841394,0.0001726,2]
[335277410,1724064662853,-835.22,0.0001726,2]
[335277411,1724064662863,-1036.0,0.0001726,2]
[335277412,1724064662873,-500.0,0.0001726,2]
[335277413,1724064662883,-500.0,0.0001726,2]
[335277414,1724064662893,-500.0,0.0001726,2]
[335277415,1724064662903,-401.22068447,0.0001726,2]
[335277416,1724064662914,-1629.15,0.0001726,2]
[335277417,1724064662925,-874.96,0.0001726,2]
[335277418,1724064662935,-679.46,0.0001726,2]
[335277419,1724064662947,-650.75,0.0001726,2]
[335277420,1724064662958,-714.72,0.0001726,2]
[335277421,1724064662968,-2792.23,0.0001726,2]
[335277422,1724064662979,-500.0,0.0001726,2]
[335277423,1724064662989,-500.0,0.0001726,2]
[335277424,1724064662999,-1304.87,0.0001726,2]
[335277425,1724064663009,-685.38,0.0001726,2]
[335277426,1724064663019,-999.6,0.0001726,2]
[335277427,1724064663029,-500.0,0.0001726,2]
[335277428,1724064663039,-303.11322377,0.0001726,2]
[335277429,1724064663050,-547.37,0.0001726,2]
[335277430,1724064663060,-500.0,0.0001726,2]
[335277431,1724064663070,-625.23,0.0001726,2]
[335277432,1724064663080,-500.0,0.0001726,2]
[335277433,1724064663091,-500.0,0.0001726,2]
[335277434,1724064663101,-500.0,0.0001726,2]
[335277435,1724064663110,-285.61170834,0.0001726,2]
[335277436,1724064663120,-500.0,0.0001726,2]
[335277437,1724064663132,-1241.89,0.0001726,2]
[335277438,1724064663142,-545.07,0.0001726,2]
[335277439,1724064663153,-500.0,0.0001726,2]
[335277440,1724064663164,-500.0,0.0001726,2]
[335277441,1724064663173,-500.0,0.0001726,2]
[335277442,1724064663184,-500.0,0.0001726,2]
[335277443,1724064663194,-200.0,0.0001726,2]
[335277444,1724064663203,-500.0,0.0001726,2]
[335277445,1724064663214,-1810.25,0.0001726,2]
[335277446,1724064663225,-1703.86,0.0001726,2]
[335277447,1724064663235,-1465.02,0.0001726,2]
[335277448,1724064663246,-548.12,0.0001726,2]
[335277449,1724064663258,-500.0,0.0001726,2]
[335277450,1724064663268,-500.0,0.0001726,2]
[335277451,1724064663279,-500.0,0.0001726,2]
[335277452,1724064663290,-644.029277,0.0001726,2]
[335277453,1724064663300,-644.029277,0.0001726,2]
[335277454,1724064663312,-644.029277,0.0001726,2]
[335277455,1724064663322,-500.0,0.0001726,2]
[335277456,1724064663335,-644.029277,0.0001726,2]
[335277457,1724064663352,-810.71,0.0001726,2]
[335277458,1724064663362,-2823.37,0.0001726,2]
[335277459,1724064663371,-500.0,0.0001726,2]
[335277460,1724064663381,-539.41129827,0.0001726,2]
[335277461,1724064663391,-500.0,0.0001726,2]
[335277462,1724064663402,-500.0,0.0001726,2]
[335277463,1724064663412,-913.2,0.0001726,2]
[335277464,1724064663423,-500.0,0.0001726,2]
[335277465,1724064663433,-500.0,0.0001726,2]
[335277466,1724064663443,-1950.34,0.0001726,2]
[335277467,1724064663453,-766.64,0.0001726,2]
[335277468,1724064663463,-1677.1,0.0001726,2]
[335277469,1724064663474,-611.4,0.0001726,2]
[335277470,1724064663484,-628.62,0.0001726,2]
[335277471,1724064663494,-500.0,0.0001726,2]
[335277472,1724064663506,-531.03,0.0001726,2]
[335277473,1724064663517,-500.0,0.0001726,2]
[335277474,1724064663528,-500.0,0.0001726,2]
[335277475,1724064663539,-1530.73,0.0001726,2]
[335277476,1724064663550,-754.52,0.0001726,2]
[335277477,1724064663561,-575.88,0.0001726,2]
[335277478,1724064663571,-955.98,0.0001726,2]
[335277479,1724064663583,-239.01868934,0.0001726,2]
[335277480,1724064663591,-500.0,0.0001726,2]
[335277481,1724064663601,-574.44,0.0001726,2]
[335277482,1724064663610,-731.1,0.0001726,2]
[335277483,1724064663620,-500.0,0.0001726,2]
[335277484,1724064663630,-6498.62,0.0001726,2]
[335277485,1724064663639,-500.0,0.0001726,2]
[335277486,1724064663649,-500.0,0.0001726,2]
[335277487,1724064663659,-6412.2,0.0001726,2]
[335277488,1724064663670,-500.0,0.0001726,2]
[335277489,1724064663680,-500.0,0.0001726,2]
[335277490,1724064663691,-500.0,0.0001726,2]
[335277491,1724064663701,-1017.23,0.0001726,2]
[335277492,1724064663711,-500.0,0.0001726,2]
[335277493,1724064663721,-500.0,0.0001726,2]
[335277494,1724064663731,-1833.35,0.0001726,2]
[335277495,1724064663740,-500.0,0.0001726,2]
[335277496,1724064663754,-551.2,0.0001726,2]
[335277497,1724064663764,-500.0,0.0001726,2]
[335277498,1724064663773,-500.0,0.0001726,2]
[335277499,1724064663784,-500.0,0.0001726,2]
[335277500,1724064663793,-866.32,0.0001726,2]
[335277501,1724064663803,-1076.73,0.0001726,2]
[335277502,1724064663813,-552.95,0.0001726,2]
[335277503,1724064663823,-1738.28,0.0001726,2]
[335277504,1724064663834,-591.99,0.0001726,2]
[335277505,1724064663844,-556.23,0.0001726,2]
[335277506,1724064663853,-1070.93,0.0001726,2]
[335277507,1724064663863,-500.0,0.0001726,2]
[335277508,1724064663872,-500.0,0.0001726,2]
[335277509,1724064663882,-500.0,0.0001726,2]
[335277510,1724064663892,-1404.09,0.0001726,2]
[335277511,1724064663903,-527.24,0.0001726,2]
[335277512,1724064663913,-500.0,0.0001726,2]
[335277513,1724064663923,-549.76,0.0001726,2]
[335277514,1724064663932,-4166.87,0.0001726,2]
[335277515,1724064663943,-500.0,0.0001726,2]
[335277516,1724064663952,-952.17,0.0001726,2]
[335277517,1724064663963,-523.47,0.0001726,2]
[335277518,1724064663974,-19615.05,0.0001726,2]
[335277519,1724064663983,-500.0,0.0001726,2]
[335277520,1724064663993,-500.0,0.0001726,2]
[335277521,1724064664004,-500.0,0.0001726,2]
[335277522,1724064664109,-594.695822,0.0001726,2]
[335277523,1724064664120,-594.695822,0.0001726,2]
[335277524,1724064664130,-1409.16,0.0001726,2]
[335277525,1724064664140,-967.54,0.0001726,2]
[335277526,1724064664150,-5418.3,0.0001726,2]
[335277527,1724064664161,-500.0,0.0001726,2]
[335277528,1724064664173,-500.0,0.0001726,2]
[335277529,1724064664183,-594.695822,0.0001726,2]
[335277530,1724064664194,-594.695822,0.0001726,2]
[335277531,1724064664205,-500.0,0.0001726,2]
[335277532,1724064664216,-500.0,0.0001726,2]
[335277533,1724064664226,-3020.65,0.0001726,2]
[335277534,1724064664236,-2059.25,0.0001726,2]
[335277535,1724064664245,-6249.43,0.0001726,2]
[335277536,1724064664255,-1358.47,0.0001726,2]
[335277537,1724064664265,-1833.6,0.0001726,2]
[335277538,1724064664274,-479.52376187,0.0001726,2]
[335277539,1724064664284,-162.02062493,0.0001726,2]
[335277540,1724064664294,-695.24,0.0001726,2]
[335277541,1724064664303,-1406.0,0.0001726,2]
[335277542,1724064664314,-500.0,0.0001726,2]
[335277543,1724064664323,-1523.28,0.0001726,2]
[335277544,1724064664334,-521.48,0.0001726,2]
[335277545,1724064664343,-1476.87,0.0001726,2]
[335277546,1724064664352,-322.88427281,0.0001726,2]
[335277547,1724064664362,-500.0,0.0001726,2]
[335277548,1724064664371,-309.9128131,0.0001726,2]
[335277549,1724064664381,-2266.85,0.0001726,2]
[335277550,1724064664390,-1022.040147,0.0001726,2]
[335277551,1724064664400,-1022.040147,0.0001726,2]
[335277552,1724064664409,-500.0,0.0001726,2]
[335277553,1724064664419,-1022.040147,0.0001726,2]
[335277554,1724064664428,-500.0,0.0001726,2]
[335277555,1724064664438,-1022.040139,0.0001726,2]
[335277556,1724064664448,-500.0,0.0001726,2]
[335277557,1724064664458,-1215.95,0.0001726,2]
[335277558,1724064664467,-734.72,0.0001726,2]
[335277559,1724064664476,-500.0,0.0001726,2]
[335277560,1724064664486,-729.24,0.0001726,2]
[335277561,1724064664495,-2145.28,0.0001726,2]
[335277562,1724064664505,-500.0,0.0001726,2]
[335277563,1724064664515,-1474.66,0.0001726,2]
[335277564,1724064664524,-500.0,0.0001726,2]
[335277565,1724064664535,-612.11,0.0001726,2]
[335277566,1724064664545,-2313.4,0.0001726,2]
[335277567,1724064664557,-1177.26,0.0001726,2]
[335277568,1724064664569,-500.0,0.0001726,2]
[335277569,1724064664579,-573.54,0.0001726,2]
[335277570,1724064664591,-1601.505462,0.0001726,2]
[335277571,1724064664602,-1601.505462,0.0001726,2]
[335277572,1724064664613,-500.0,0.0001726,2]
[335277573,1724064664623,-500.0,0.0001726,2]
[335277574,1724064664634,-500.0,0.0001726,2]
[335277575,1724064664644,-560.41,0.0001726,2]
[335277576,1724064664654,-1601.505462,0.0001726,2]
[335277577,1724064664663,-2216.78,0.0001726,2]
[335277578,1724064664673,-1601.505461,0.0001726,2]
[335277579,1724064664682,-500.0,0.0001726,2]
[335277580,1724064664691,-1514.7,0.0001726,2]
[335277581,1724064664701,-835.68,0.0001726,2]
[335277582,1724064664711,-500.0,0.0001726,2]
[335277583,1724064664721,-3105.81,0.0001726,2]
[335277584,1724064664732,-500.0,0.0001726,2]
[335277585,1724064664741,-595.88,0.0001726,2]
[335277586,1724064664756,-500.0,0.0001726,2]
[335277587,1724064664766,-1084.05,0.0001726,2]
[335277588,1724064664777,-500.0,0.0001726,2]
[335277589,1724064664787,-317.402066,0.0001726,2]
[335277590,1724064664798,-317.402066,0.0001726,2]
[335277591,1724064664808,-500.0,0.0001726,2]
[335277592,1724064664820,-3685.64,0.0001726,2]
[335277593,1724064664831,-2913.53,0.0001726,2]
[335277594,1724064664843,-317.402066,0.0001726,2]
[335277595,1724064664854,-597.54,0.0001726,2]
[335277596,1724064664865,-502.13773403,0.0001726,2]
[335277597,1724064664877,-317.40207,0.0001726,2]
[335277598,1724064664888,-1064.67,0.0001726,2]
[335277599,1724064664900,-1144.09,0.0001726,2]
[335277600,1724064664911,-500.0,0.0001726,2]
[335277601,1724064664923,-1364.06,0.0001726,2]
[335277602,1724064664932,-500.0,0.0001726,2]
[335277603,1724064664944,-500.0,0.0001726,2]
[335277604,1724064664954,-668.34,0.0001726,2]
[335277605,1724064664964,-252.46335928,0.00017269,2]
[335277606,1724064664975,-150.0,0.00017273,2]
[335277607,1724064664985,-200.0,0.00017273,2]
[335277608,1724064664994,-200.0,0.00017273,2]
[335277609,1724064665004,-200.0,0.00017273,2]
[335277610,1724064665013,-200.0,0.00017273,2]
[335277611,1724064665025,-200.60097022,0.00017273,2]
[335277612,1724064665035,-200.0,0.00017273,2]
[335277613,1724064665045,-1854.4367005,0.00017463,2]
[335277614,1724064665054,-20951.74006431,0.00017516,10]
[335277615,1724064665063,-500.0,0.00017534,2]
[335277616,1724064665074,-999.1,0.00017534,2]
[335277617,1724064665085,-500.0,0.00017534,2]
[335277618,1724064665095,-500.0,0.00017534,2]
[335277619,1724064665104,-635.16,0.00017534,2]
[335277620,1724064665114,-505.30554583,0.00017534,2]
[335277621,1724064665123,-500.0,0.00017534,2]
[335277622,1724064665133,-591.86,0.00017534,2]
[335277623,1724064665143,-500.0,0.00017534,2]
[335277624,1724064665153,-500.0,0.00017534,2]
[335277625,1724064665164,-500.0,0.00017534,2]
[335277626,1724064665174,-500.0,0.00017534,2]
[335277627,1724064665184,-566.51,0.00017534,2]
[335277628,1724064665193,-500.0,0.00017534,2]
[335277629,1724064665203,-500.0,0.00017534,2]
[335277630,1724064665212,-500.0,0.00017534,2]
[335277631,1724064665222,-426.96086626,0.00017534,2]
[335277632,1724064665231,-500.0,0.00017534,2]
[335277633,1724064665240,-219.38183815,0.00017534,2]
[335277634,1724064665250,-500.0,0.00017534,2]
[335277635,1724064665260,-500.0,0.00017534,2]
[335277636,1724064665270,-500.0,0.00017534,2]
[335277637,1724064665279,-500.0,0.00017534,2]